Cogmind - Beta 13 X1 @@@ ROGUE MODE // 2023.07.10 @ 18:07:51 Player: Momo Result: Destroyed by YK-YTT(R) with Subdweller Laser Performance ------------- Evolutions (0) 0 Regions Visited (3) 600 Robots Destroyed (22) 110 Value Destroyed (681) 681 Prototype IDs (0) 0 Alien Tech Used (0) 0 Bonus (0) 0 TOTAL SCORE: 1391 Bonus ------- None Cogmind --------- Core Integrity 0/250 Matter 110/300 Energy 95/100 System Corruption 2% Temperature Cool (6) Movement Core (200) Ox3 Location -10/Subcaves Parts ------- > --- POWER (1) -------- (None) > --- PROPULSION (2) --- Subdweller Monowheel Subdweller Monowheel > --- UTILITY (2) ------ Targeting Computer > --- WEAPON (2) ------- Subdweller Shrapnel Launcher Ripper > --- INVENTORY (5) ---- Humpback High-capacity Matter Pod (22) Subdweller Machine Gun Peak State ------------ > --- POWER ------------ (None) > --- PROPULSION ------- Subdweller Monowheel Subdweller Monowheel > --- UTILITY ---------- Targeting Computer > --- WEAPON ----------- Subdweller Machine Gun Ripper > --- INVENTORY -------- Humpback High-capacity Matter Pod Subdweller Shrapnel Launcher [Rating: 11] Favorites ----------- Power None Propulsion Light Treads Treads Light Treads Wheel Subdweller Monowheel Hover Unit Hover Unit Utility Targeting Computer Processor Targeting Computer Weapon Light Assault Rifle Ballistic Gun Light Assault Rifle Launcher Rocket Launcher Slashing Weapon Ripper Build | -11 -10 -10 -10 ------- Run | Jun Mat Min Sub Slots Evolved . | . . . . Power . | . . . . Propulsion . | . . . . Utility . | . . . . Weapon . | . . . . Parts Attached 21 | . 2 5 14 Power . | . . . . Engine . | . . . . Core . | . . . . Reactor . | . . . . Propulsion 6 | . 1 2 3 Treads 2 | . . 2 . Leg . | . . . . Wheel 3 | . . . 3 Hover 1 | . 1 . . Flight . | . . . . Utility 1 | . . 1 . Device . | . . . . Storage . | . . . . Processor 1 | . . 1 . Hackware . | . . . . Protection . | . . . . Artifact . | . . . . Weapon 14 | . 1 2 11 Energy Gun . | . . . . Energy Cannon . | . . . . Ballistic Gun 7 | . 1 2 4 Ballistic Cannon . | . . . . Launcher 6 | . . . 6 Special Weapon . | . . . . Impact Weapon . | . . . . Slashing Weapon 1 | . . . 1 Piercing Weapon . | . . . . Special Melee Weapon . | . . . . Unidentified Prototypes . | . . . . Parts Lost 5 | . . 1 4 Power . | . . . . Propulsion 3 | . . 1 2 Utility . | . . . . Weapon 2 | . . . 2 Highest Loss Streak 4 | . . 1 4 To Critical Strikes . | . . . . Average Slot Usage (%) 63 | . 7 61 64 Treads 16 | . . 20 16 Wheel 9 | . . . 11 Hover 1 | . 7 7 . Processor 12 | . . 5 14 Ballistic Gun 13 | . . 28 10 Launcher 5 | . . . 7 Slashing Weapon 3 | . . . 4 Naked Turns 19 | . 19 . . Heaviest Build 11 | . 1 3 11 Greatest Support 20 | 3 3 3 20 Greatest Overweight (x) 3 | . . . 3 Average Overweight (x) . | . . . . Largest Inventory Capacity 5 | 5 5 5 5 Average Capacity 5 | 5 5 5 5 Most Carried 5 | 5 5 5 5 Average Carried 4 | 3 4 4 4 Final Capacity 5 | 5 5 5 5 Final Carried 5 | 5 5 5 4 Class Distribution -------------------- 74% | Mutant 25% | Derelict-Mutant Dominant Class ---------------- Mutant | -10/Materials Mutant | -10/Mines Mutant | -10/Subcaves Resources | -11 -10 -10 -10 ----------- Run | Jun Mat Min Sub Matter Collected 953 | 200 . 185 568 Remotely . | . . . . Salvage Created 452 | . . 145 307 Parts 40 | . . 14 26 Haulers Intercepted . | . . . . Recyclers Shooed . | . . . . Parts Field Recycled . | . . . . Retrieved Matter . | . . . . Parts Self-Destructed 12 | . . . 12 Prevented . | . . . . Kills | -11 -10 -10 -10 ------- Run | Jun Mat Min Sub Combat Hostiles Destroyed 20 | . . 5 15 Guns 5 | . . 5 . AOE 15 | . . . 15 Classes Destroyed 4 | . . 2 2 Turret 2 | . . . 2 Swarmer 6 | . . 3 3 Grunt 2 | . . 2 . Subdweller 12 | . . . 12 Best Kill Streak 7 | . . 3 7 Combat Bots Only 7 | . . 3 7 Max Kills in Single Turn 2 | . . 1 2 Gunslinging . | . . . . Exploded 2 | . . . 2 Melee . | . . . . Uniques/NPCs Destroyed . | . . . . Combat | -11 -10 -10 -10 -------- Run | Jun Mat Min Sub Damage Taken 851 | . . 274 577 Core 260 | . . 87 173 Absorbed by Shields . | . . . . Core Remaining (%) 100 | 100 . . . Volleys Fired 60 | . . 16 44 Largest 2 | . . 2 2 Hottest 53 | . . 40 53 Shots Fired 88 | . . 33 55 Gun 48 | . . 33 15 Cannon . | . . . . Launcher 40 | . . . 40 Special . | . . . . Kinetic 54 | . . 33 21 Thermal . | . . . . Explosive 34 | . . . 34 Electromagnetic . | . . . . Robot Hit Streak 8 | . . 8 8 Robot Miss Streak 2 | . . 2 2 Penetration Max . | . . . . Secondary Targets 3 | . . 3 . Max Gunslinging Chain 1 | . . 1 . Shots Hit Robots 54 | . . 24 30 Core Hits 38 | . . 11 27 Critical Kills . | . . . . Critical Parts Destroyed . | . . . . Critical Strikes . | . . . . Melee Attacks 10 | . . . 10 Impact . | . . . . Slashing 10 | . . . 10 Piercing . | . . . . Sneak Attacks . | . . . . Combat Hostiles . | . . . . Follow-up Attacks . | . . . . Damage Inflicted 2019 | . . 202 1817 Guns 260 | . . 202 58 Cannons . | . . . . Explosions 1759 | . . . 1759 Melee . | . . . . Ramming . | . . . . Kinetic 670 | . . 202 468 Thermal . | . . . . Explosive 1349 | . . . 1349 Electromagnetic . | . . . . Impact . | . . . . Slashing . | . . . . Piercing . | . . . . Highest Corruption 2 | . 2 2 2 Average Corruption 2 | . 2 2 2 Corruption Purged . | . . . . Corruption Blocked . | . . . . Effects 26 | . 1 6 19 Message Errors 2 | . . 1 1 Matter Fused 5 | . . 1 4 Heat Flow Errors 6 | . . 1 5 Energy Discharges 3 | . . . 3 Data Loss (minor) 5 | . 1 2 2 Data Loss (major) 1 | . . . 1 Misfires 3 | . . 1 2 Alerts 1 | . . . 1 Overload Shots . | . . . . Overflow Damage 20 | . . . 20 Projectiles . | . . . . Explosions 20 | . . . 20 Melee . | . . . . Knockbacks . | . . . . Impact . | . . . . Kinetic . | . . . . Secondary . | . . . . Self-Inflicted Damage 19 | . . . 19 Shots 1 | . . . 1 Rammed . | . . . . Targets Rammed . | . . . . Kicked . | . . . . Crushed . | . . . . Highest Temperature 229 | . . 126 229 Average Temperature 60 | . . 26 90 Received Heat Transfer 261 | . . 123 138 Siege Activations . | . . . . Robots Corrupted . | . . . . Combat Hostiles . | . . . . Parts Fried . | . . . . Impact Corruptions . | . . . . Robots Melted . | . . . . Combat Hostiles . | . . . . Parts Melted . | . . . . Heat Transferred . | . . . . Parts Sabotaged . | . . . . Parts Stolen . | . . . . Parts Stripped . | . . . . Power Chain Reactions . | . . . . Missiles Intercepted . | . . . . Alert | -11 -10 -10 -10 ------- Run | Jun Mat Min Sub Peak Influence 140 | . . 140 . Initial . | . . . . Average 90 | . . 108 . Maximum Alert Level . | . . . . Low Security (%) 100 | 100 100 100 . Level 1 . | . . . . Level 2 . | . . . . Level 3 . | . . . . Level 4 . | . . . . Level 5 . | . . . . High Security . | . . . . Max Security . | . . . . Squads Dispatched . | . . . . Investigation . | . . . . Extermination . | . . . . Reinforcement . | . . . . Assault . | . . . . Garrison . | . . . . Intercept . | . . . . Searches Triggered . | . . . . Construction Impeded . | . . . . Haulers Reinforced . | . . . . Active Scanning Responses . | . . . . Cargo Convoy Interrupts . | . . . . Stealth | -11 -10 -10 -10 --------- Run | Jun Mat Min Sub Distress Signals . | . . . . Communications Jammed . | . . . . Distress Signals . | . . . . Times Spotted 34 | . 2 5 27 Peak Tracking Total 3 | . 3 3 3 Tactical Retreats 3 | . . . 3 Traps | -11 -10 -10 -10 ------- Run | Jun Mat Min Sub Traps Triggered 3 | . 1 . 2 Indirectly . | . . . . Trap Hack Attempts . | . . . . Triggered . | . . . . Disarmed . | . . . . Reprogrammed . | . . . . Reused . | . . . . Traps Extracted . | . . . . Installed . | . . . . Triggered . | . . . . Machines | -11 -10 -10 -10 ---------- Run | Jun Mat Min Sub Machines Disabled 4 | . . . 4 Max in Single Turn 2 | . . . 2 Machines Repaired . | . . . . Machines Sabotaged . | . . . . Overloaded Fab Kills . | . . . . Hacking | -11 -10 -10 -10 --------- Run | Jun Mat Min Sub Machines Accessed . | . . . . Terminals . | . . . . Fabricators . | . . . . Repair Stations . | . . . . Recycling Units . | . . . . Scanalyzers . | . . . . Garrison Access . | . . . . Total Hacks . | . . . . Successful . | . . . . Failed . | . . . . Catastrophic . | . . . . Database Lockouts . | . . . . Manual . | . . . . Terminals . | . . . . Fabricators . | . . . . Repair Stations . | . . . . Recycling Units . | . . . . Scanalyzers . | . . . . Garrison Access . | . . . . Terminal Hacks . | . . . . Fabricator Hacks . | . . . . Repair Station Hacks . | . . . . Recycling Unit Hacks . | . . . . Scanalyzer . | . . . . Garrison Access Hacks . | . . . . Unauthorized Hacks . | . . . . Terminals . | . . . . Fabricators . | . . . . Repair Stations . | . . . . Recycling Units . | . . . . Scanalyzers . | . . . . Garrison Access . | . . . . Data Cores Recovered . | . . . . Used . | . . . . Hacking Detections . | . . . . Full Trace Events . | . . . . Feedback Events . | . . . . Feedback Blocked . | . . . . Robot Schematics Acquired . | . . . . Robots Built . | . . . . Authchips . | . . . . Time . | . . . . Total Robot Build Rating . | . . . . Part Schematics Acquired . | . . . . Parts Built . | . . . . Authchips . | . . . . Time . | . . . . Total Part Build Rating . | . . . . Parts Repaired . | . . . . Time . | . . . . Parts Recycled . | . . . . Recycled Matter . | . . . . Retrieved Matter . | . . . . Retrieved Components . | . . . . Parts Scanalyzed . | . . . . Part Schematics Acquired . | . . . . Parts Damaged . | . . . . Bothacking | -11 -10 -10 -10 ------------ Run | Jun Mat Min Sub Used RIF Installer . | . . . . Robots Hacked . | . . . . Non-combat . | . . . . Combat . | . . . . Robot Hacks Applied . | . . . . Relay Couplers Released . | . . . . Fabnet Peak Effective % . | . . . . Robots Rewired . | . . . . Allies Hacked . | . . . . Hacks Repelled . | . . . . Allies | -11 -10 -10 -10 -------- Run | Jun Mat Min Sub Total Allies . | . . . . Largest Group . | . . . . Highest-Rated Group . | . . . . Highest-Rated Ally . | . . . . Total Orders . | . . . . Ally Attacks . | . . . . Total Damage . | . . . . Kills . | . . . . Allies Corrupted . | . . . . Allies Melted . | . . . . Intel | -11 -10 -10 -10 ------- Run | Jun Mat Min Sub Robot Analysis Total . | . . . . Derelict Logs Recovered 4 | . . 2 2 Drone Launches . | . . . . Drone Recoveries . | . . . . Exploration | -11 -10 -10 -10 ------------- Run | Jun Mat Min Sub Turns Passed 1863 | 21 44 337 1461 Spaces Moved 2391 | 32 80 517 1762 Core 2297 | 32 80 517 1668 Treads . | . . . . Legs . | . . . . Wheels 94 | . . . 94 Hover . | . . . . Flight . | . . . . Fastest Speed 50 | 50 50 50 50 Average Speed 67 | 50 50 50 74 Slowest Speed 200 | 50 50 50 200 Overloaded Moves . | . . . . Propulsion Burnouts . | . . . . Robots Hopped . | . . . . Cave-ins Triggered . | . . . . Exploration Rate (%) 50 | 3 23 94 82 Regions Visited 3 Branch Regions 2 Pre-discovered Areas 2 | . . 1 1 Known Exits Taken . | . . . . Unknown Exits Taken 3 | 1 1 1 . Scrap Searched 3 | . . 2 1 Spaces Dug 19 | . . . 19 Terrain Destroyed 331 | . . . 331 Melee 6 | . . . 6 Projectile . | . . . . AOE 325 | . . . 325 Terrain Rammed . | . . . . Walls Destroyed . | . . . . Machines Disabled . | . . . . Actions | -11 -10 -10 -10 --------- Run | Jun Mat Min Sub Total 2538 | 36 82 569 1851 Wait 30 | . . 26 4 Move 2388 | 31 79 516 1762 Hop . | . . . . Pick Up 15 | 5 1 4 5 Fast Attach 5 | . 1 1 3 Attach 10 | . 1 3 6 Detach 5 | . . . 5 Swap 6 | . . 1 5 Drop 9 | . . 2 7 Fire 60 | . . 16 44 Melee 10 | . . . 10 Ram . | . . . . Kick . | . . . . Crush . | . . . . Escape Stasis . | . . . . Rewire . | . . . . Trap . | . . . . Miscellaneous . | . . . . Route ------- -11/Junkyard -10/Materials -10/Mines (discovered 3 exits: [*Mat x2] / [*Sub]) -10/Subcaves (discovered 3 exits: [*Mat] / [*Mat] / [*Rec]) History --------- Turn | Location | Event 3 | -11/Junkyard | Discovered new exit (range 15) 22 | -11/Junkyard | Entered Materials 57 | -10/Materials | Discovered new exit (range 11) 66 | -10/Materials | Entered Mines 120 | -10/Mines | Discovered new exit (range 10) 197 | -10/Mines | Received a Rocket Launcher from a helpful Derelict 203 | -10/Mines | Learned Materials trap positions 208 | -10/Mines | Deemed a non-threat by the Exiles lab entrance 275 | -10/Mines | Discovered new exit (range 4) 293 | -10/Mines | Learned 2 Materials zone layouts 300 | -10/Mines | Build established: Mutant 343 | -10/Mines | Learned location of Storage (-7) 400 | -10/Mines | Discovered new exit (range 5) 403 | -10/Mines | Entered Subcaves 516 | -10/Subcaves | Learned Materials interactive machine intel 557 | -10/Subcaves | Discovered new exit (range 9) 609 | -10/Subcaves | Shifting Twisted Machinery released Sub. Shrapnel Launcher 679 | -10/Subcaves | A swath of the cavern ceiling suddenly collapsed 857 | -10/Subcaves | Discovered new exit (range 5) 968 | -10/Subcaves | Core integrity fell below 50% 968 | -10/Subcaves | Ambushed by Subdweller buried in earth 1060 | -10/Subcaves | Shifting Twisted Machinery released Sub. Beam Cannon 1125 | -10/Subcaves | Shifting Twisted Machinery released Piercing Trap 1199 | -10/Subcaves | Ambushed by Subdwellers from Twisted Machinery 1217 | -10/Subcaves | Ambushed by Subdweller buried in earth 1242 | -10/Subcaves | Destroyed 7 combat bots 1245 | -10/Subcaves | Core integrity fell below 20% 1253 | -10/Subcaves | Discovered new exit (range 11) 1273 | -10/Subcaves | Lost 4 parts (2n2w) 1373 | -10/Subcaves | Shifting Twisted Machinery released Ripper 1378 | -10/Subcaves | Shifting Twisted Machinery released Sub. Shrapnel Launcher 1423 | -10/Subcaves | A swath of the cavern ceiling suddenly collapsed 1687 | -10/Subcaves | Build established: Derelict-Mutant 1864 | -10/Subcaves | Destroyed by YK-YTT(R) with Subdweller Laser Last Messages --------------- 01287_ Dropped Sub. Monowheel. Ripper falls loose from the Twisted Machinery. Sub. Shrapnel Launcher falls loose from the Twisted Machinery. 01403_ Acquired Ripper. A swath of the cavern ceiling suddenly collapses. 01515_ Searching scrap... 01515_ Found Scrap Shield. 01515_ Found 13 Matter. 01516_ Acquired 13 matter. 01635_ System corrupted: Heat flow error (+188). 01650_ System corrupted: Energy discharge (-38). 01667_ 5T-0S9(R) destroyed. 01689_ System corrupted: Matter fused (-9). 01729_ Acquired 49 matter. 01735_ Acquired 15 matter. 01746_ CHHG2ZD8H#SY3QA9NT:CKZBAAT 01769_ Acquired 26 matter. 01798_ System corrupted: Matter fused (-7). 01837_ System corrupted: Heat flow error (+148). 01864_ W9-QUC(R) destroyed. Map ----- +----------------------------------------------------+ | ????????????????????????????????????????# ????? | | ????????????????????????????????????????# ????? | | ?????????????????????????????????????????# ##### | | ??????????????????????????????????????????# # | | ???????????????????????????????????????????# | | ???????????????????????????????????????????## | | ????????????????????????????????????????????# # | | ????????????????????????????????????????????### # | | ??????????????????????????????????????????????## | | ???????????????????? ???????????????????????## | | ???????????????????# ??????????????????????## | | ???????????????????# ?????????????????????## | | ??????????????????#; ?????????????????????# | | ??????????????###;;; ;?????????????????????# | | ??????????????#""; R ;?????????????????????## | | ?????????????? " &!%;??????????????????????# | | ?????????????? ; &&;###??????????????????# | | ??????????????##;; *&= #?????????????????# | | ??????????????# #?????????????????## | | ??????????????# ;#??????????????????# # | | ???????????????# ;##?????????????????##### | | ???????????#???## ;#?????????????????????? | | ???????????? ??#" ;#?????????????????????? | | ???????????# #; #?????????????????????? | | ???????????#### #?## #?????????????????????? | | ??????????????# ?## @##?????????????????????? | | ??????????????# ### #??????????????????????? | | ??????????????# # ###????????????????????? | | ??????????????#### # #????????????????????? | | ?????????????#"### ##????????????????????? | | ????????????## " # # ###?????????????????????? | | ????????????# % "### ##???????????????????????? | | ???????????## ## #?????????######?###?????? | | ???????????# " ! #????????## ### ##????? | | ??????????## " "# #????????# #????? | | ??????????# #?????????# #????? | | ??????????## ## ####??????##### #????? | | ???????????## ### #"??????##?## #????? | | ????????????## ?## # ##??## #?# #????? | | ?????????????## #??# #### #### #?# #????? | | ??????????????####### #???# "## #?# #????? | | ?????????????????## ###### ## #??# #????? | | ?????????????????# ## " #??# #????? | | ????????????????## " #### ##????? | | ??????????####??# # ## ##?????? | | ??????????# #### ### ####???? | | ??????????# ## = ##??? | | ???????????# & #??? | | ???????????# ## * #??? | | ?????????### ### #??? | +----------------------------------------------------+ Best States ------------- Heat Dissipation 25 Energy Generation 5 Energy Capacity 100 Matter Stores 300 Matter Capacity 300 Sight Range 16 Terrain Scan Density 10 Evasion (%) 50 Targeting Accuracy 5 Recoil Reduction 1 Item Schematics ----------------- None Robot Schematics ------------------ None Fabricated ------------ Nothing Alien Tech Used ----------------- None Achievements -------------- None Challenges ------------ None Game ------ Seed LauncherPlatingKatana Manual? 0 Play Time 00:18:32 Cumulative 424.3 hours Start 2023.07.10 @ 17:52:37 End 2023.07.10 @ 18:07:51 Sessions 1 Manual Loads 0 Difficulty Rogue Special Mode None Game No. 202 Rogue 198 Adventurer 0 Explorer 4 Win Type - Total 24 Types 8/1/2/5/1/2/3/1/1 Lore% 81 Gallery% 86 Achievement% 80 Wizard Run 0 Options --------- ASCII 0 Keyboard 0 Movement Mouse Keybinds 0 Fullscreen 1 Font 18/SmallcapsGlow Map View 76x50 Tactical HUD 1 Map Filters NONE Filters NONE Steam 1 RUN: 46b1cbed-c15b-4d67-b4f9-bbbc8aef68ea